[Event "Titled Tuesday Blitz April 18 Late 2023"]
[White "Prydun, Andriy"]
[Black "Murugappan, Ganesh"]
[WhiteFideId "14145898"]
[BlackFideId "2080516"]
[WhiteElo "2164"]
[BlackElo "2209"]
[Result "1-0"]
[Round "02"]
[TimeControl "180+2"]
[Date "2023.04.18"]
[WhiteClock "0:00:23"]
[BlackClock "0:00:02"]

1. e4 {[%clk 0:03:00]}  c5 {[%clk 0:02:59]} 2. Nf3 {[%clk 0:03:01]}  Nc6 {[%clk 0:02:57]} 3. Bb5 {[%clk 0:03:02]}  e6 {[%clk 0:02:57]} 4. O-O {[%clk 0:03:01]}  Nge7 {[%clk 0:02:56]} 5. c3 {[%clk 0:03:00]}  a6 {[%clk 0:02:57]} 6. Ba4 {[%clk 0:03:00]}  b5 {[%clk 0:02:56]} 7. Bc2 {[%clk 0:03:01]}  d5 {[%clk 0:02:54]} 8. d4 {[%clk 0:03:01]}  cxd4 {[%clk 0:02:51]} 9. Nxd4 {[%clk 0:03:01]}  Bb7 {[%clk 0:02:35]} 10. Bg5 {[%clk 0:02:58]}  Nxd4 {[%clk 0:02:16]} 11. Qxd4 {[%clk 0:02:59]}  dxe4 {[%clk 0:02:09]} 12. Qe3 {[%clk 0:02:16]}  f6 {[%clk 0:01:46]} 13. Bf4 {[%clk 0:01:39]}  e5 {[%clk 0:00:34]} 14. Bg3 {[%clk 0:01:37]}  Nf5 {[%clk 0:00:35]} 15. Qe2 {[%clk 0:01:37]}  Nxg3 {[%clk 0:00:28]} 16. fxg3 {[%clk 0:01:36]}  Bc5+ {[%clk 0:00:14]} 17. Kh1 {[%clk 0:01:36]}  e3 {[%clk 0:00:15]} 18. Qh5+ {[%clk 0:01:33]}  g6 {[%clk 0:00:13]} 19. Bxg6+ {[%clk 0:01:32]}  hxg6 {[%clk 0:00:07]} 20. Qxh8+ {[%clk 0:01:31]}  Kf7 {[%clk 0:00:08]} 21. Qh7+ {[%clk 0:01:28]}  Ke6 {[%clk 0:00:06]} 22. Na3 {[%clk 0:00:42]}  Qd3 {[%clk 0:00:03]} 23. Rae1 {[%clk 0:00:34]}  Qe4 {[%clk 0:00:02]} 24. Qh3+ {[%clk 0:00:33]}  Kf7 {[%clk 0:00:01]} 25. Qd7+ {[%clk 0:00:30]}  Kg8 {[%clk 0:00:01]} 26. Re2 {[%clk 0:00:29]}  Rc8 {[%clk 0:00:01]} 27. Nc2 {[%clk 0:00:26]}  Rf8 {[%clk 0:00:01]} 28. Ne1 {[%clk 0:00:24]}  Rf7 {[%clk 0:00:02]} 29. Qd3 {[%clk 0:00:23]}  Qxd3 {[%clk 0:00:02]} 30. Nxd3 {[%clk 0:00:23]}  Rd7 {[%clk 0:00:03]} 31. Nxc5 {[%clk 0:00:23]}  Rc7 {[%clk 0:00:01]} 32. Nxb7 {[%clk 0:00:23]}  Rxb7 {[%clk 0:00:02]} 33. Rxe3 {[%clk 0:00:23]} 1-0


[Site "https://www.chess.com"]

[Event "Titled Tuesday Blitz April 18 Late 2023"]
[White "Gardezi, Arsal"]
[Black "Kubatko, Ivan"]
[WhiteFideId "30949521"]
[BlackFideId "24111473"]
[WhiteElo "1906"]
[BlackElo "2285"]
[Result "0-1"]
[Round "02"]
[TimeControl "180+2"]
[Date "2023.04.18"]
[WhiteClock "0:01:10"]
[BlackClock "0:01:59"]

1. e4 {[%clk 0:03:00]}  d5 {[%clk 0:03:00]} 2. exd5 {[%clk 0:03:00]}  Qxd5 {[%clk 0:02:59]} 3. Nc3 {[%clk 0:03:00]}  Qa5 {[%clk 0:02:55]} 4. d4 {[%clk 0:03:00]}  Nf6 {[%clk 0:02:55]} 5. Nf3 {[%clk 0:03:01]}  Bg4 {[%clk 0:02:54]} 6. Be2 {[%clk 0:03:01]}  Nc6 {[%clk 0:02:53]} 7. Bf4 {[%clk 0:02:49]}  O-O-O {[%clk 0:02:45]} 8. Be3 {[%clk 0:02:48]}  e5 {[%clk 0:02:44]} 9. O-O {[%clk 0:02:22]}  Bxf3 {[%clk 0:02:39]} 10. Bxf3 {[%clk 0:02:20]}  exd4 {[%clk 0:02:39]} 11. Bxc6 {[%clk 0:02:08]}  bxc6 {[%clk 0:02:40]} 12. Bxd4 {[%clk 0:02:07]}  c5 {[%clk 0:02:38]} 13. Bxf6 {[%clk 0:01:28]}  Rxd1 {[%clk 0:02:37]} 14. Raxd1 {[%clk 0:01:28]}  gxf6 {[%clk 0:02:36]} 15. Nd5 {[%clk 0:01:28]}  Bd6 {[%clk 0:02:33]} 16. Rfe1 {[%clk 0:01:16]}  f5 {[%clk 0:02:08]} 17. Ne3 {[%clk 0:01:13]}  Re8 {[%clk 0:02:03]} 18. c3 {[%clk 0:01:10]}  f4 {[%clk 0:01:59]} 19. Nc4 {[%clk 0:01:09]}  Rxe1+ {[%clk 0:01:59]} 20. Rxe1 {[%clk 0:01:10]}  Qxa2 {[%clk 0:01:59]} 0-1


[Site "https://www.chess.com"]

[Event "Titled Tuesday Blitz April 18 Late 2023"]
[White "Volkmann, Andre Jordi"]
[Black "Estrada Nieto, Julian"]
[WhiteFideId "2154463"]
[BlackFideId "5101018"]
[WhiteElo "1999"]
[BlackElo "2161"]
[Result "1-0"]
[Round "02"]
[TimeControl "180+2"]
[Date "2023.04.18"]
[WhiteClock "0:00:23"]
[BlackClock "0:00:12"]

1. d4 {[%clk 0:03:00]}  d5 {[%clk 0:02:59]} 2. c4 {[%clk 0:03:01]}  dxc4 {[%clk 0:02:59]} 3. Nc3 {[%clk 0:03:01]}  a6 {[%clk 0:02:59]} 4. a4 {[%clk 0:03:00]}  Nc6 {[%clk 0:02:58]} 5. e3 {[%clk 0:03:00]}  Na5 {[%clk 0:02:58]} 6. Nf3 {[%clk 0:02:55]}  Nf6 {[%clk 0:02:58]} 7. Ne5 {[%clk 0:02:55]}  Be6 {[%clk 0:02:58]} 8. Bd2 {[%clk 0:02:51]}  g6 {[%clk 0:02:56]} 9. Qc2 {[%clk 0:02:36]}  Bg7 {[%clk 0:02:54]} 10. Ne4 {[%clk 0:02:31]}  Nb3 {[%clk 0:02:48]} 11. Nxf6+ {[%clk 0:02:24]}  exf6 {[%clk 0:02:48]} 12. Nxc4 {[%clk 0:02:11]}  Nxa1 {[%clk 0:02:48]} 13. Qd1 {[%clk 0:02:12]}  b5 {[%clk 0:02:39]} 14. Na5 {[%clk 0:02:05]}  O-O {[%clk 0:02:26]} 15. Qxa1 {[%clk 0:02:04]}  f5 {[%clk 0:02:21]} 16. Be2 {[%clk 0:01:54]}  c5 {[%clk 0:01:59]} 17. Nb7 {[%clk 0:01:41]}  Qd5 {[%clk 0:01:40]} 18. Bf3 {[%clk 0:01:36]}  Qc4 {[%clk 0:01:36]} 19. Nxc5 {[%clk 0:01:35]}  Rac8 {[%clk 0:01:29]} 20. Be2 {[%clk 0:01:25]}  Qa2 {[%clk 0:01:04]} 21. Qxa2 {[%clk 0:01:20]}  Bxa2 {[%clk 0:01:04]} 22. axb5 {[%clk 0:01:19]}  axb5 {[%clk 0:01:04]} 23. O-O {[%clk 0:01:05]}  Bc4 {[%clk 0:01:04]} 24. Bxc4 {[%clk 0:01:03]}  bxc4 {[%clk 0:01:04]} 25. Rc1 {[%clk 0:01:04]}  Rb8 {[%clk 0:00:54]} 26. Nd7 {[%clk 0:01:02]}  Rxb2 {[%clk 0:00:53]} 27. Nxf8 {[%clk 0:01:03]}  Rxd2 {[%clk 0:00:33]} 28. Nd7 {[%clk 0:01:02]}  Bf8 {[%clk 0:00:21]} 29. Ne5 {[%clk 0:01:01]}  c3 {[%clk 0:00:20]} 30. Nf3 {[%clk 0:00:53]}  Rb2 {[%clk 0:00:15]} 31. Ne1 {[%clk 0:00:44]}  Ba3 {[%clk 0:00:12]} 32. Kf1 {[%clk 0:00:36]}  Ra2 {[%clk 0:00:11]} 33. Rxc3 {[%clk 0:00:32]}  Bb4 {[%clk 0:00:11]} 34. Rc1 {[%clk 0:00:31]}  h5 {[%clk 0:00:08]} 35. Nd3 {[%clk 0:00:31]}  Ba3 {[%clk 0:00:07]} 36. Rb1 {[%clk 0:00:30]}  Bd6 {[%clk 0:00:06]} 37. g3 {[%clk 0:00:25]}  Kg7 {[%clk 0:00:06]} 38. Nf4 {[%clk 0:00:24]}  Bxf4 {[%clk 0:00:06]} 39. gxf4 {[%clk 0:00:24]}  h4 {[%clk 0:00:06]} 40. Kg2 {[%clk 0:00:23]}  Rd2 {[%clk 0:00:06]} 41. Rb7 {[%clk 0:00:22]}  Kf6 {[%clk 0:00:06]} 42. Kf3 {[%clk 0:00:22]}  h3 {[%clk 0:00:06]} 43. Rb8 {[%clk 0:00:20]}  Ke6 {[%clk 0:00:06]} 44. Rh8 {[%clk 0:00:20]}  Rd1 {[%clk 0:00:05]} 45. Rxh3 {[%clk 0:00:20]}  Rg1 {[%clk 0:00:04]} 46. Rh7 {[%clk 0:00:21]}  Rd1 {[%clk 0:00:04]} 47. Ke2 {[%clk 0:00:20]}  Rb1 {[%clk 0:00:03]} 48. h4 {[%clk 0:00:21]}  Rb2+ {[%clk 0:00:04]} 49. Kf3 {[%clk 0:00:20]}  Kf6 {[%clk 0:00:05]} 50. h5 {[%clk 0:00:19]}  gxh5 {[%clk 0:00:04]} 51. Rxh5 {[%clk 0:00:19]}  Kg6 {[%clk 0:00:05]} 52. Rh8 {[%clk 0:00:19]}  Kf6 {[%clk 0:00:05]} 53. Re8 {[%clk 0:00:19]}  Rc2 {[%clk 0:00:04]} 54. Re5 {[%clk 0:00:18]}  Rb2 {[%clk 0:00:04]} 55. Kg3 {[%clk 0:00:15]}  Rc2 {[%clk 0:00:04]} 56. f3 {[%clk 0:00:15]}  Rc1 {[%clk 0:00:05]} 57. e4 {[%clk 0:00:15]}  Rg1+ {[%clk 0:00:05]} 58. Kf2 {[%clk 0:00:15]}  Rd1 {[%clk 0:00:05]} 59. Rxf5+ {[%clk 0:00:15]}  Kg7 {[%clk 0:00:05]} 60. d5 {[%clk 0:00:14]}  Rd3 {[%clk 0:00:05]} 61. Kg3 {[%clk 0:00:15]}  Ra3 {[%clk 0:00:05]} 62. d6 {[%clk 0:00:15]}  Rd3 {[%clk 0:00:05]} 63. Rd5 {[%clk 0:00:15]}  Rxd5 {[%clk 0:00:03]} 64. exd5 {[%clk 0:00:16]}  Kf8 {[%clk 0:00:04]} 65. Kg4 {[%clk 0:00:15]}  Ke8 {[%clk 0:00:05]} 66. Kf5 {[%clk 0:00:16]}  Kd7 {[%clk 0:00:06]} 67. Kf6 {[%clk 0:00:16]}  Kxd6 {[%clk 0:00:06]} 68. Kxf7 {[%clk 0:00:17]}  Kxd5 {[%clk 0:00:06]} 69. Kg6 {[%clk 0:00:18]}  Ke6 {[%clk 0:00:06]} 70. f5+ {[%clk 0:00:19]}  Ke7 {[%clk 0:00:07]} 71. f6+ {[%clk 0:00:20]}  Kf8 {[%clk 0:00:08]} 72. f7 {[%clk 0:00:20]}  Ke7 {[%clk 0:00:08]} 73. Kg7 {[%clk 0:00:21]}  Ke6 {[%clk 0:00:08]} 74. f8=Q {[%clk 0:00:21]}  Ke5 {[%clk 0:00:09]} 75. Qf6+ {[%clk 0:00:21]}  Kd5 {[%clk 0:00:08]} 76. Qe7 {[%clk 0:00:20]}  Kc4 {[%clk 0:00:09]} 77. f4 {[%clk 0:00:20]}  Kd3 {[%clk 0:00:10]} 78. f5 {[%clk 0:00:21]}  Kc4 {[%clk 0:00:10]} 79. f6 {[%clk 0:00:22]}  Kd5 {[%clk 0:00:11]} 80. f7 {[%clk 0:00:23]}  Kc6 {[%clk 0:00:11]} 81. f8=Q {[%clk 0:00:23]}  Kb5 {[%clk 0:00:12]} 82. Qfd8 {[%clk 0:00:23]} 1-0


[Site "https://www.chess.com"]

[Event "Titled Tuesday Blitz April 18 Late 2023"]
[White "mistrzemi"]
[Black "ayme97"]
[WhiteElo "2436"]
[BlackElo "2195"]
[Result "1/2-1/2"]
[Round "02"]
[TimeControl "180+2"]
[Date "2023.04.18"]
[WhiteClock "0:01:15"]
[BlackClock "0:00:30"]

1. e4 {[%clk 0:03:00]}  c5 {[%clk 0:02:54]} 2. d4 {[%clk 0:02:59]}  cxd4 {[%clk 0:02:54]} 3. c3 {[%clk 0:03:00]}  d3 {[%clk 0:02:54]} 4. c4 {[%clk 0:02:59]}  d6 {[%clk 0:02:54]} 5. Nc3 {[%clk 0:02:59]}  e6 {[%clk 0:02:49]} 6. Bxd3 {[%clk 0:02:59]}  Be7 {[%clk 0:02:49]} 7. Nf3 {[%clk 0:03:00]}  Nf6 {[%clk 0:02:49]} 8. O-O {[%clk 0:03:01]}  Nbd7 {[%clk 0:02:48]} 9. Re1 {[%clk 0:03:00]}  O-O {[%clk 0:02:47]} 10. h3 {[%clk 0:02:59]}  a6 {[%clk 0:02:45]} 11. Bf4 {[%clk 0:02:59]}  e5 {[%clk 0:02:38]} 12. Be3 {[%clk 0:02:57]}  b6 {[%clk 0:02:32]} 13. Nd5 {[%clk 0:02:55]}  Nxd5 {[%clk 0:02:27]} 14. cxd5 {[%clk 0:02:56]}  b5 {[%clk 0:02:25]} 15. Rc1 {[%clk 0:02:53]}  Bb7 {[%clk 0:02:25]} 16. Qd2 {[%clk 0:02:46]}  Rc8 {[%clk 0:02:20]} 17. Rxc8 {[%clk 0:02:45]}  Qxc8 {[%clk 0:02:19]} 18. Rc1 {[%clk 0:02:46]}  Qb8 {[%clk 0:02:18]} 19. Ne1 {[%clk 0:02:28]}  Rc8 {[%clk 0:02:17]} 20. Nc2 {[%clk 0:02:29]}  Bd8 {[%clk 0:02:00]} 21. Nb4 {[%clk 0:02:14]}  Ba5 {[%clk 0:01:56]} 22. a3 {[%clk 0:02:14]}  Nc5 {[%clk 0:01:51]} 23. Qd1 {[%clk 0:02:11]}  Bxb4 {[%clk 0:01:47]} 24. axb4 {[%clk 0:02:09]}  Nxd3 {[%clk 0:01:47]} 25. Rxc8+ {[%clk 0:02:09]}  Bxc8 {[%clk 0:01:42]} 26. Qxd3 {[%clk 0:02:10]}  Qc7 {[%clk 0:01:41]} 27. Qc3 {[%clk 0:02:08]}  Qxc3 {[%clk 0:01:41]} 28. bxc3 {[%clk 0:02:09]}  f5 {[%clk 0:01:40]} 29. f3 {[%clk 0:01:56]}  Kf7 {[%clk 0:01:37]} 30. Ba7 {[%clk 0:01:51]}  Ke7 {[%clk 0:01:27]} 31. Kf2 {[%clk 0:01:52]}  f4 {[%clk 0:01:27]} 32. Ke2 {[%clk 0:01:51]}  g5 {[%clk 0:01:26]} 33. Kd3 {[%clk 0:01:50]}  h5 {[%clk 0:01:23]} 34. Bf2 {[%clk 0:01:48]}  g4 {[%clk 0:01:13]} 35. Bh4+ {[%clk 0:01:48]}  Ke8 {[%clk 0:01:10]} 36. hxg4 {[%clk 0:01:47]}  hxg4 {[%clk 0:01:04]} 37. Ke2 {[%clk 0:01:44]}  g3 {[%clk 0:00:56]} 38. Bf6 {[%clk 0:01:41]}  Kd7 {[%clk 0:00:55]} 39. Bh4 {[%clk 0:01:36]}  Kc7 {[%clk 0:00:55]} 40. Kd3 {[%clk 0:01:36]}  Bd7 {[%clk 0:00:55]} 41. Kc2 {[%clk 0:01:35]}  Kb7 {[%clk 0:00:50]} 42. Kb3 {[%clk 0:01:35]}  Bc8 {[%clk 0:00:41]} 43. Kc2 {[%clk 0:01:32]}  Bd7 {[%clk 0:00:37]} 44. Kd2 {[%clk 0:01:30]}  Kc7 {[%clk 0:00:34]} 45. Ke2 {[%clk 0:01:30]}  Bc8 {[%clk 0:00:34]} 46. Be7 {[%clk 0:01:29]}  Bd7 {[%clk 0:00:33]} 47. Bf8 {[%clk 0:01:30]}  Bc8 {[%clk 0:00:33]} 48. Kf1 {[%clk 0:01:19]}  Bd7 {[%clk 0:00:33]} 49. Be7 {[%clk 0:01:15]}  Bc8 {[%clk 0:00:34]} 50. Bh4 {[%clk 0:01:14]}  Bd7 {[%clk 0:00:30]} 51. Ke1 {[%clk 0:01:15]}  Bc8 {[%clk 0:00:30]} 52. Kd2 {[%clk 0:01:15]}  Bd7 {[%clk 0:00:30]} 1/2-1/2


[Site "https://www.chess.com"]

[Event "Titled Tuesday Blitz April 18 Late 2023"]
[White "ChessSG1"]
[Black "Vaglio Munoz, Jaime"]
[BlackFideId "6500145"]
[WhiteElo "2187"]
[BlackElo "2199"]
[Result "1/2-1/2"]
[Round "02"]
[TimeControl "180+2"]
[Date "2023.04.18"]
[WhiteClock "0:00:05"]
[BlackClock "0:00:16"]

1. c4 {[%clk 0:03:00]}  c6 {[%clk 0:02:58]} 2. Nf3 {[%clk 0:03:00]}  b5 {[%clk 0:02:58]} 3. cxb5 {[%clk 0:02:56]}  cxb5 {[%clk 0:02:59]} 4. e4 {[%clk 0:02:57]}  Bb7 {[%clk 0:02:59]} 5. Bxb5 {[%clk 0:02:51]}  Bxe4 {[%clk 0:02:58]} 6. O-O {[%clk 0:02:52]}  Nf6 {[%clk 0:02:56]} 7. Nc3 {[%clk 0:02:52]}  Bc6 {[%clk 0:02:55]} 8. d4 {[%clk 0:02:42]}  Bxb5 {[%clk 0:02:34]} 9. Nxb5 {[%clk 0:02:42]}  a6 {[%clk 0:02:34]} 10. Nc3 {[%clk 0:02:41]}  g6 {[%clk 0:02:29]} 11. Re1 {[%clk 0:02:37]}  Bg7 {[%clk 0:02:28]} 12. Bf4 {[%clk 0:02:21]}  O-O {[%clk 0:02:26]} 13. Qe2 {[%clk 0:02:13]}  Re8 {[%clk 0:02:25]} 14. Rac1 {[%clk 0:02:12]}  d6 {[%clk 0:02:25]} 15. Na4 {[%clk 0:02:08]}  Nbd7 {[%clk 0:02:24]} 16. Bd2 {[%clk 0:02:07]}  Rb8 {[%clk 0:02:22]} 17. b3 {[%clk 0:02:07]}  Rb5 {[%clk 0:01:55]} 18. Qd3 {[%clk 0:01:52]}  Nd5 {[%clk 0:01:53]} 19. Nb2 {[%clk 0:01:40]}  Qb8 {[%clk 0:01:34]} 20. Re2 {[%clk 0:01:28]}  e6 {[%clk 0:01:30]} 21. Ne1 {[%clk 0:01:26]}  Qb6 {[%clk 0:01:20]} 22. Nc2 {[%clk 0:01:26]}  e5 {[%clk 0:01:08]} 23. Nc4 {[%clk 0:01:25]}  Qb8 {[%clk 0:01:07]} 24. dxe5 {[%clk 0:01:23]}  dxe5 {[%clk 0:01:06]} 25. N2a3 {[%clk 0:01:07]}  Rc5 {[%clk 0:00:52]} 26. b4 {[%clk 0:01:03]}  e4 {[%clk 0:00:38]} 27. Rxe4 {[%clk 0:00:58]}  Rxe4 {[%clk 0:00:35]} 28. Qxe4 {[%clk 0:00:58]}  N7f6 {[%clk 0:00:34]} 29. Qd3 {[%clk 0:00:42]}  Nxb4 {[%clk 0:00:32]} 30. Qb3 {[%clk 0:00:42]}  Nc6 {[%clk 0:00:31]} 31. Qxb8+ {[%clk 0:00:33]}  Nxb8 {[%clk 0:00:32]} 32. Rb1 {[%clk 0:00:34]}  Nc6 {[%clk 0:00:31]} 33. Be3 {[%clk 0:00:34]}  Rd5 {[%clk 0:00:30]} 34. g3 {[%clk 0:00:32]}  Ng4 {[%clk 0:00:30]} 35. Rb6 {[%clk 0:00:20]}  Nxe3 {[%clk 0:00:29]} 36. Nxe3 {[%clk 0:00:20]}  Rd6 {[%clk 0:00:27]} 37. Nac4 {[%clk 0:00:19]}  Re6 {[%clk 0:00:27]} 38. Rxa6 {[%clk 0:00:19]}  h5 {[%clk 0:00:21]} 39. h4 {[%clk 0:00:19]}  Nb4 {[%clk 0:00:20]} 40. Ra8+ {[%clk 0:00:18]}  Kh7 {[%clk 0:00:19]} 41. Kg2 {[%clk 0:00:19]}  Nd3 {[%clk 0:00:18]} 42. Rd8 {[%clk 0:00:17]}  Ne5 {[%clk 0:00:17]} 43. Nxe5 {[%clk 0:00:14]}  Rxe5 {[%clk 0:00:18]} 44. a4 {[%clk 0:00:13]}  Ra5 {[%clk 0:00:18]} 45. Rd7 {[%clk 0:00:11]}  Kg8 {[%clk 0:00:17]} 46. Rd8+ {[%clk 0:00:08]}  Kh7 {[%clk 0:00:17]} 47. Rd7 {[%clk 0:00:07]}  Rxa4 {[%clk 0:00:16]} 48. Rxf7 {[%clk 0:00:07]}  Kg8 {[%clk 0:00:17]} 49. Rb7 {[%clk 0:00:06]}  Ra2 {[%clk 0:00:17]} 50. Rb8+ {[%clk 0:00:04]}  Kf7 {[%clk 0:00:17]} 51. Rb7+ {[%clk 0:00:05]}  Kg8 {[%clk 0:00:17]} 52. Rb8+ {[%clk 0:00:05]}  Kf7 {[%clk 0:00:17]} 53. Rb7+ {[%clk 0:00:05]}  Kg8 {[%clk 0:00:16]} 1/2-1/2


[Site "https://www.chess.com"]

[Event "Titled Tuesday Blitz April 18 Late 2023"]
[White "Schmidt, Harald"]
[Black "WindWhistler11"]
[WhiteFideId "4648358"]
[WhiteElo "2171"]
[BlackElo "2433"]
[Result "0-1"]
[Round "02"]
[TimeControl "180+2"]
[Date "2023.04.18"]
[WhiteClock "0:00:08"]
[BlackClock "0:00:25"]

1. e4 {[%clk 0:03:00]}  e6 {[%clk 0:02:57]} 2. d4 {[%clk 0:02:59]}  d5 {[%clk 0:02:55]} 3. Nd2 {[%clk 0:02:59]}  Nc6 {[%clk 0:02:55]} 4. Ngf3 {[%clk 0:02:54]}  Nf6 {[%clk 0:02:54]} 5. Bd3 {[%clk 0:02:49]}  Nb4 {[%clk 0:02:52]} 6. O-O {[%clk 0:02:43]}  Nxd3 {[%clk 0:02:52]} 7. cxd3 {[%clk 0:02:42]}  Be7 {[%clk 0:02:52]} 8. Re1 {[%clk 0:02:40]}  O-O {[%clk 0:02:52]} 9. Nf1 {[%clk 0:02:27]}  a5 {[%clk 0:02:51]} 10. Bg5 {[%clk 0:02:22]}  b6 {[%clk 0:02:49]} 11. Rc1 {[%clk 0:02:14]}  Ba6 {[%clk 0:02:48]} 12. Ng3 {[%clk 0:02:09]}  Rc8 {[%clk 0:02:41]} 13. Qd2 {[%clk 0:02:08]}  c5 {[%clk 0:02:37]} 14. dxc5 {[%clk 0:02:03]}  bxc5 {[%clk 0:02:38]} 15. Red1 {[%clk 0:01:48]}  a4 {[%clk 0:02:33]} 16. Qf4 {[%clk 0:01:46]}  Rb8 {[%clk 0:02:27]} 17. Rc2 {[%clk 0:01:39]}  dxe4 {[%clk 0:02:17]} 18. Bxf6 {[%clk 0:01:25]}  exf3 {[%clk 0:01:48]} 19. Bxe7 {[%clk 0:01:00]}  Qxe7 {[%clk 0:01:49]} 20. Qxf3 {[%clk 0:00:57]}  Rfd8 {[%clk 0:01:41]} 21. Ne4 {[%clk 0:00:56]}  Rd5 {[%clk 0:01:40]} 22. g3 {[%clk 0:00:55]}  Rbd8 {[%clk 0:01:39]} 23. Qe3 {[%clk 0:00:52]}  c4 {[%clk 0:01:26]} 24. d4 {[%clk 0:00:43]}  e5 {[%clk 0:01:22]} 25. Rcd2 {[%clk 0:00:43]}  f5 {[%clk 0:01:03]} 26. Nc3 {[%clk 0:00:41]}  e4 {[%clk 0:00:56]} 27. Nxd5 {[%clk 0:00:40]}  Rxd5 {[%clk 0:00:57]} 28. Qf4 {[%clk 0:00:36]}  g5 {[%clk 0:00:54]} 29. Qb8+ {[%clk 0:00:30]}  Kg7 {[%clk 0:00:52]} 30. Qa8 {[%clk 0:00:27]}  Qe6 {[%clk 0:00:47]} 31. b3 {[%clk 0:00:22]}  cxb3 {[%clk 0:00:42]} 32. axb3 {[%clk 0:00:21]}  axb3 {[%clk 0:00:40]} 33. Rb2 {[%clk 0:00:21]}  Bc4 {[%clk 0:00:39]} 34. Qb7+ {[%clk 0:00:19]}  Kg6 {[%clk 0:00:38]} 35. Qb4 {[%clk 0:00:18]}  Rb5 {[%clk 0:00:34]} 36. Qc3 {[%clk 0:00:16]}  Bd5 {[%clk 0:00:31]} 37. Ra1 {[%clk 0:00:14]}  f4 {[%clk 0:00:30]} 38. gxf4 {[%clk 0:00:13]}  gxf4 {[%clk 0:00:29]} 39. f3 {[%clk 0:00:13]}  exf3 {[%clk 0:00:27]} 40. Qd3+ {[%clk 0:00:13]}  Qe4 {[%clk 0:00:25]} 41. Qxb5 {[%clk 0:00:12]}  Qxd4+ {[%clk 0:00:25]} 42. Kf1 {[%clk 0:00:11]}  Bc4+ {[%clk 0:00:24]} 43. Qxc4 {[%clk 0:00:11]}  Qxc4+ {[%clk 0:00:25]} 44. Kg1 {[%clk 0:00:08]}  Qd4+ {[%clk 0:00:25]} 0-1


[Site "https://www.chess.com"]

[Event "Titled Tuesday Blitz April 18 Late 2023"]
[White "mjelcic"]
[Black "Tworuszka, Michal"]
[BlackFideId "1117858"]
[WhiteElo "2157"]
[BlackElo "2433"]
[Result "1-0"]
[Round "02"]
[TimeControl "180+2"]
[Date "2023.04.18"]
[WhiteClock "0:00:29"]
[BlackClock "0:00:07"]

1. c4 {[%clk 0:03:00]}  e5 {[%clk 0:02:58]} 2. Nc3 {[%clk 0:03:00]}  Nf6 {[%clk 0:02:58]} 3. g3 {[%clk 0:02:59]}  d5 {[%clk 0:02:58]} 4. cxd5 {[%clk 0:02:59]}  Nxd5 {[%clk 0:02:59]} 5. Bg2 {[%clk 0:02:59]}  Nb6 {[%clk 0:02:59]} 6. Nf3 {[%clk 0:02:58]}  Nc6 {[%clk 0:02:59]} 7. O-O {[%clk 0:02:57]}  Be7 {[%clk 0:02:59]} 8. a3 {[%clk 0:02:53]}  O-O {[%clk 0:02:58]} 9. d3 {[%clk 0:02:51]}  Re8 {[%clk 0:02:58]} 10. b4 {[%clk 0:02:50]}  Bf8 {[%clk 0:02:58]} 11. Bb2 {[%clk 0:02:50]}  a5 {[%clk 0:02:56]} 12. b5 {[%clk 0:02:47]}  Nd4 {[%clk 0:02:56]} 13. e3 {[%clk 0:02:39]}  Nxf3+ {[%clk 0:02:52]} 14. Bxf3 {[%clk 0:02:39]}  a4 {[%clk 0:02:50]} 15. Rc1 {[%clk 0:02:31]}  Ra7 {[%clk 0:02:44]} 16. Qc2 {[%clk 0:02:27]}  Be6 {[%clk 0:02:41]} 17. Ne4 {[%clk 0:02:22]}  Nd5 {[%clk 0:02:15]} 18. Nc5 {[%clk 0:02:13]}  Bh3 {[%clk 0:01:29]} 19. Rfd1 {[%clk 0:01:56]}  c6 {[%clk 0:00:43]} 20. bxc6 {[%clk 0:01:28]}  bxc6 {[%clk 0:00:44]} 21. Nxa4 {[%clk 0:01:21]}  Re6 {[%clk 0:00:25]} 22. Nc5 {[%clk 0:01:19]}  Rh6 {[%clk 0:00:20]} 23. a4 {[%clk 0:01:07]}  Qf6 {[%clk 0:00:19]} 24. Qe2 {[%clk 0:00:57]}  Qg5 {[%clk 0:00:12]} 25. Ne4 {[%clk 0:00:54]}  Qf5 {[%clk 0:00:11]} 26. Nc5 {[%clk 0:00:42]}  Qg5 {[%clk 0:00:10]} 27. d4 {[%clk 0:00:31]}  exd4 {[%clk 0:00:08]} 28. Bxd4 {[%clk 0:00:30]}  Rxa4 {[%clk 0:00:07]} 29. Nxa4 {[%clk 0:00:29]} 1-0


[Site "https://www.chess.com"]

[Event "Titled Tuesday Blitz April 18 Late 2023"]
[White "ElenGajger"]
[Black "Tarnowska, Aleksandra"]
[BlackFideId "1180967"]
[WhiteElo "2431"]
[BlackElo "1776"]
[Result "1-0"]
[Round "02"]
[TimeControl "180+2"]
[Date "2023.04.18"]
[WhiteClock "0:00:33"]
[BlackClock "0:00:04"]

1. e4 {[%clk 0:03:00]}  c5 {[%clk 0:03:00]} 2. Nc3 {[%clk 0:03:00]}  a6 {[%clk 0:02:58]} 3. Nf3 {[%clk 0:02:59]}  b5 {[%clk 0:02:57]} 4. d4 {[%clk 0:02:57]}  cxd4 {[%clk 0:02:57]} 5. Nxd4 {[%clk 0:02:58]}  e5 {[%clk 0:02:51]} 6. Nf3 {[%clk 0:02:55]}  Nc6 {[%clk 0:02:50]} 7. a4 {[%clk 0:02:50]}  b4 {[%clk 0:02:50]} 8. Nd5 {[%clk 0:02:49]}  Nf6 {[%clk 0:02:46]} 9. Nxf6+ {[%clk 0:02:44]}  Qxf6 {[%clk 0:02:46]} 10. Bc4 {[%clk 0:02:43]}  h6 {[%clk 0:02:38]} 11. O-O {[%clk 0:02:40]}  Bc5 {[%clk 0:02:33]} 12. Re1 {[%clk 0:02:28]}  O-O {[%clk 0:02:32]} 13. Be3 {[%clk 0:02:27]}  Bxe3 {[%clk 0:02:29]} 14. Rxe3 {[%clk 0:02:27]}  d6 {[%clk 0:02:17]} 15. Bd5 {[%clk 0:02:22]}  Bb7 {[%clk 0:02:14]} 16. Qd2 {[%clk 0:02:11]}  a5 {[%clk 0:02:07]} 17. Rd1 {[%clk 0:02:08]}  Rfd8 {[%clk 0:02:00]} 18. Rd3 {[%clk 0:02:03]}  Qe7 {[%clk 0:01:48]} 19. Qe3 {[%clk 0:01:58]}  Rab8 {[%clk 0:01:38]} 20. g3 {[%clk 0:01:53]}  Qc7 {[%clk 0:01:33]} 21. Nh4 {[%clk 0:01:49]}  Ba6 {[%clk 0:01:32]} 22. R3d2 {[%clk 0:01:44]}  Ne7 {[%clk 0:01:27]} 23. Bb3 {[%clk 0:01:42]}  Bb7 {[%clk 0:01:22]} 24. Qe2 {[%clk 0:01:34]}  Qc6 {[%clk 0:01:17]} 25. f3 {[%clk 0:01:28]}  Qc5+ {[%clk 0:01:01]} 26. Kh1 {[%clk 0:01:27]}  g5 {[%clk 0:00:42]} 27. Ng2 {[%clk 0:01:25]}  Kg7 {[%clk 0:00:37]} 28. Ne3 {[%clk 0:01:24]}  Kg6 {[%clk 0:00:21]} 29. Kg2 {[%clk 0:01:22]}  f5 {[%clk 0:00:20]} 30. exf5+ {[%clk 0:01:21]}  Nxf5 {[%clk 0:00:21]} 31. Bf7+ {[%clk 0:00:59]}  Kf6 {[%clk 0:00:17]} 32. Nxf5 {[%clk 0:00:56]}  Kxf5 {[%clk 0:00:17]} 33. Qd3+ {[%clk 0:00:39]}  e4 {[%clk 0:00:14]} 34. Qb3 {[%clk 0:00:38]}  exf3+ {[%clk 0:00:13]} 35. Kh3 {[%clk 0:00:35]}  g4+ {[%clk 0:00:09]} 36. Kh4 {[%clk 0:00:35]}  Qe5 {[%clk 0:00:05]} 37. Rd5 {[%clk 0:00:33]}  Bxd5 {[%clk 0:00:04]} 38. Rxd5 {[%clk 0:00:33]} 1-0


[Site "https://www.chess.com"]